Cogmind - Beta 16.1 @@@ ROGUE MODE // 2026.02.18 @ 22:19:14 Player: Bereft Result: Destroyed by G-34 Mercenary with Small Laser Performance ------------- Evolutions (1) 500 Regions Visited (3) 600 Robots Destroyed (26) 130 Value Destroyed (617) 617 Prototype IDs (2) 40 Alien Tech Used (0) 0 Bonus (0) 0 TOTAL SCORE: 1887 Bonus ------- None Cogmind --------- Core Integrity 0/400 Matter 300/300 Energy 98/100 System Corruption 51% Temperature Cool (6) Movement Core (50) Location -9/Materials Parts ------- > --- POWER (1) -------- (None) > --- PROPULSION (2) --- (None) > --- UTILITY (3) ------ (None) > --- WEAPON (3) ------- (None) > --- INVENTORY (5) ---- Ion Engine Light Ion Engine Peak State ------------ > --- POWER ------------ Light Nuclear Core > --- PROPULSION ------- Light Treads > --- UTILITY ---------- Large Storage Unit Structural Scanner > --- WEAPON ----------- Small Laser Particle Gun Assault Rifle > --- INVENTORY -------- Welding Torch [Rating: 10] Favorites ----------- Power Light Nuclear Core Engine Ion Engine Power Core Light Nuclear Core Propulsion Light Treads Treads Light Treads Leg Aluminum Leg Utility Large Storage Unit Device ECM Suite Storage Large Storage Unit Weapon EM Pulse Gun Energy Gun EM Pulse Gun Ballistic Gun Assault Rifle Ballistic Cannon Light Cannon Special Weapon Welding Torch Impact Weapon Hammer Build | -11 -10 -10 -9 ------- Run | Yrd Mat Min Mat Slots Evolved 2 | . . . 2 Power . | . . . . Propulsion . | . . . . Utility 1 | . . . 1 Weapon 1 | . . . 1 Parts Attached 24 | 6 4 . 14 Power 5 | 1 1 . 3 Engine 4 | 1 . . 3 Core 1 | . 1 . . Reactor . | . . . . Propulsion 5 | 2 . . 3 Treads 3 | 2 . . 1 Leg 2 | . . . 2 Wheel . | . . . . Hover . | . . . . Flight . | . . . . Utility 5 | 1 2 . 2 Device 3 | . 1 . 2 Storage 2 | 1 1 . . Processor . | . . . . Hackware . | . . . . Protection . | . . . . Artifact . | . . . . Weapon 9 | 2 1 . 6 Energy Gun 5 | 2 . . 3 Energy Cannon . | . . . . Ballistic Gun 1 | . 1 . . Ballistic Cannon 1 | . . . 1 Launcher . | . . . . Special Weapon 1 | . . . 1 Impact Weapon 1 | . . . 1 Slashing Weapon . | . . . . Piercing Weapon . | . . . . Special Melee Weapon . | . . . . Unidentified Prototypes . | . . . . Corrupted Parts 6 | . 1 . 5 System Corruption 42 | . 1 . 41 Parts Lost 15 | . 1 2 12 Power 3 | . . . 3 Propulsion 3 | . . 1 2 Utility 1 | . . . 1 Weapon 8 | . 1 1 6 Highest Loss Streak 7 | . 1 2 7 To Critical Strikes . | . . . . Average Backups 2 | 1 2 4 2 Power . | . . . 1 Propulsion . | . . . . Utility . | . . 1 . Weapon . | 1 . 2 . Tool/Special . | . . . . Unused Backups 2 | . 1 . 1 Power 2 | . 1 . 1 Propulsion . | . . . . Utility . | . . . . Weapon . | . . . . Tool/Special . | . . . . Average Slot Usage (%) 81 | . 97 98 67 Engine 6 | . 10 . 6 Core 5 | . 3 14 2 Treads 16 | . 28 27 6 Leg 1 | . . . 2 Device 11 | . 12 13 11 Storage 12 | . 14 14 10 Energy Gun 17 | . 18 14 18 Ballistic Gun 7 | . 7 14 5 Ballistic Cannon 1 | . . . 2 Peak Build Rating 10 | 6 9 9 10 Average Rating 7 | 4 7 8 7 On Entrance 5 | . 6 9 6 Avg Prop Armor Cover (%) 19 | . . . 19 Naked Turns 36 | . . . 36 Heaviest Build 32 | 12 31 31 32 Greatest Support 40 | 40 40 40 20 Greatest Overweight (x) 10 | . . 1 10 Average Overweight (x) . | . . . 1 Largest Inventory Capacity 15 | 8 15 15 15 Average Capacity 12 | 7 8 15 14 Most Carried 6 | 5 4 4 6 Average Carried 2 | 2 2 4 2 Final Capacity 15 | 8 15 15 5 Final Carried 4 | 2 4 4 2 Class Distribution -------------------- 62% | Mutant 26% | Skirmisher 10% | Scavenger-Skirmisher Dominant Class ---------------- Mutant | -10/Materials Mutant | -10/Mines Skirmisher | -9/Materials Resources | -11 -10 -10 -9 ----------- Run | Yrd Mat Min Mat Matter Collected 686 | 73 281 21 311 Remotely . | . . . . Salvage Created 921 | . 426 . 495 Parts 51 | . 32 . 19 Haulers Intercepted 1 | . 1 . . Recyclers Shooed 1 | . 1 . . Parts Field Recycled . | . . . . Retrieved Matter . | . . . . Parts Self-Destructed . | . . . . Prevented . | . . . . Parts Restored . | . . . . Kills | -11 -10 -10 -9 ------- Run | Yrd Mat Min Mat Combat Hostiles Destroyed 16 | . 6 . 10 Melee 2 | . . . 2 Guns 10 | . 6 . 4 Cannons 4 | . . . 4 Classes Destroyed 6 | . 5 . 1 Worker 5 | . 1 . 4 Builder 3 | . 2 . 1 Hauler 1 | . 1 . . Watcher 1 | . 1 . . Grunt 15 | . 6 . 9 Brawler 1 | . . . 1 Best Kill Streak 3 | . 3 . 3 Combat Bots Only 3 | . 3 . 2 Max Kills in Single Turn 2 | . 2 . 2 Gunslinging . | . . . . Exploded . | . . . . Melee 1 | . . . 1 Uniques/NPCs Destroyed . | . . . . Combat | -11 -10 -10 -9 -------- Run | Yrd Mat Min Mat Hostile Shots Fired 188 | . 40 15 133 Missed 37 | . 7 4 26 Hits 151 | . 33 11 107 Melee 5 | . . . 5 Projectile 146 | . 33 11 102 Critical Strikes 3 | . 1 1 1 Damage Taken 1842 | . 434 150 1258 Core 541 | . 106 26 409 Absorbed by Shields . | . . . . Core Remaining (%) 73 | 100 . 47 . Volleys Fired 86 | . 36 6 44 Largest 3 | . 2 2 3 Hottest 145 | . 80 60 145 Shots Fired 201 | . 67 11 123 Gun 179 | . 67 11 101 Cannon 20 | . . . 20 Launcher . | . . . . Special 2 | . . . 2 Kinetic 66 | . 21 6 39 Thermal 84 | . . . 84 Explosive . | . . . . Electromagnetic 51 | . 46 5 . Robot Hit Streak 10 | . 6 3 10 Robot Miss Streak 5 | . 4 2 5 Penetration Max . | . . . . Secondary Targets 1 | . 1 . . Max Gunslinging Chain 1 | . 1 . . Shots Hit Robots 113 | . 38 5 70 Core Hits 42 | . 18 2 22 Critical Kills 2 | . 1 . 1 Critical Parts Destroyed 1 | . . . 1 Critical Strikes 8 | . 3 1 4 Destroy 2 | . 1 . 1 Blast 2 | . . . 2 Corrupt 3 | . 2 1 . Smash 1 | . . . 1 Melee Attacks 18 | . . . 18 Impact 18 | . . . 18 Slashing . | . . . . Piercing . | . . . . Sneak Attacks 1 | . . . 1 Combat Hostiles . | . . . . Follow-up Attacks . | . . . . Damage Inflicted 1790 | . 624 86 1080 Guns 1207 | . 559 86 562 Cannons 192 | . . . 192 Explosions 100 | . 65 . 35 Melee 291 | . . . 291 Ramming . | . . . . Kinetic 573 | . 229 59 285 Thermal 534 | . 65 . 469 Explosive . | . . . . Electromagnetic 392 | . 330 27 35 Impact 291 | . . . 291 Slashing . | . . . . Piercing . | . . . . Highest Corruption 51 | . 10 10 51 Average Corruption 19 | . 9 10 40 Corruption Purged . | . . . . Corruption Blocked . | . . . . Effects 43 | . 15 9 19 Message Errors 8 | . 2 1 5 Matter Fused 7 | . 2 3 2 Heat Flow Errors 4 | . 3 1 . Energy Discharges 5 | . . 1 4 Parts Rejected 2 | . . 1 1 Data Loss (minor) 7 | . 3 1 3 Data Loss (major) 6 | . 2 1 3 Misfires 1 | . 1 . . Weapon Failures 3 | . 2 . 1 Overload Shots . | . . . . Overflow Damage 58 | . . . 58 Projectiles . | . . . . Explosions . | . . . . Melee 58 | . . . 58 Knockbacks 3 | . . . 3 Impact 2 | . . . 2 Kinetic 1 | . . . 1 Secondary . | . . . . Self-Inflicted Damage 83 | . 40 . 43 Shots 2 | . 1 . 1 Rammed . | . . . . Targets Rammed . | . . . . Kicked . | . . . . Crushed . | . . . . Highest Temperature 411 | . 186 275 411 Average Temperature 98 | . 62 96 121 Received Heat Transfer 951 | . 231 108 612 Effects 2 | . . . 2 Interference 2 | . . . 2 Siege Activations . | . . . . Martial Activations . | . . . . Shielding Activations . | . . . . Robots Disrupted . | . . . . Combat Hostiles . | . . . . Robots Corrupted 1 | . . . 1 Combat Hostiles . | . . . . Parts Fried 3 | . 1 . 2 Impact Corruptions 2 | . . . 2 Robots Melted . | . . . . Combat Hostiles . | . . . . Parts Melted . | . . . . Heat Transferred 1194 | . 100 . 1094 Parts Sabotaged . | . . . . Parts Stolen . | . . . . Parts Stripped . | . . . . Power Chain Reactions 1 | . 1 . . Alert | -11 -10 -10 -9 ------- Run | Yrd Mat Min Mat Maximum Alert Level . | . . . . Low Security (%) 100 | 100 100 100 100 Level 1 . | . . . . Level 2 . | . . . . Level 3 . | . . . . Level 4 . | . . . . Level 5 . | . . . . High Security . | . . . . Max Security . | . . . . Peak Influence 77 | . 77 15 61 Initial 15 | . . 15 . Average 14 | . 20 1 16 Influence Increases 528 | . 191 . 337 Destroy 0b10 Robot/C 320 | . 120 . 200 Destroy 0b10 Robot/NC 50 | . 25 . 25 Destroy Leader 54 | . 24 . 30 Successful Hack 10 | . 5 . 5 Disable Machine 30 | . 15 . 15 Destroy Structure 4 | . 2 . 2 Lose Combat Pursuer 60 | . . . 60 Influence Decreases 507 | . 150 41 316 Entered New Map 26 | . . 26 . Time Decay 380 | . 140 15 225 Lost Part 101 | . 10 . 91 Squads Dispatched 4 | . 1 . 3 Investigation . | . . . . Extermination . | . . . . Reinforcement 4 | . 1 . 3 Assault . | . . . . Garrison . | . . . . Intercept . | . . . . Searches Triggered . | . . . . Construction Impeded 1 | . . . 1 Haulers Reinforced . | . . . . Active Scanning Responses . | . . . . Cargo Convoy Interrupts . | . . . . Stealth | -11 -10 -10 -9 --------- Run | Yrd Mat Min Mat Distress Signals 4 | . 1 . 3 Communications Jammed . | . . . . Distress Signals . | . . . . Times Spotted 33 | . 14 2 17 Peak Tracking Total 6 | . 5 2 6 Tactical Retreats 5 | . 2 . 3 ECM-based Alert Blocks 5 | . 5 . . Traps | -11 -10 -10 -9 ------- Run | Yrd Mat Min Mat Traps Triggered 5 | . 5 . . Indirectly . | . . . . Trap Hack Attempts . | . . . . Triggered . | . . . . Disarmed . | . . . . Reprogrammed . | . . . . Reused . | . . . . Traps Extracted . | . . . . Installed . | . . . . Triggered . | . . . . Machines | -11 -10 -10 -9 ---------- Run | Yrd Mat Min Mat Machines Disabled 2 | . 1 . 1 Max in Single Turn 1 | . 1 . 1 Machines Repaired . | . . . . Machines Dismantled . | . . . . Machines Sabotaged . | . . . . Overloaded Fab Kills . | . . . . Hacking | -11 -10 -10 -9 --------- Run | Yrd Mat Min Mat Machines Accessed 2 | . 1 . 1 Terminals 2 | . 1 . 1 Fabricators . | . . . . Repair Stations . | . . . . Recycling Units . | . . . . Scanalyzers . | . . . . Garrison Access . | . . . . Total Hacks 6 | . 3 . 3 Successful 5 | . 2 . 3 Failed 1 | . 1 . . Catastrophic . | . . . . Database Lockouts . | . . . . Manual . | . . . . Terminals 6 | . 3 . 3 Fabricators . | . . . . Repair Stations . | . . . . Recycling Units . | . . . . Scanalyzers . | . . . . Garrison Access . | . . . . Terminal Hacks 5 | . 2 . 3 Prototype ID Bank 1 | . 1 . . Transport Status 1 | . . . 1 Hauler Manifests 1 | . . . 1 Zone Layout 2 | . 1 . 1 Fabricator Hacks . | . . . . Repair Station Hacks . | . . . . Recycling Unit Hacks . | . . . . Scanalyzer . | . . . . Garrison Access Hacks . | . . . . Unauthorized Hacks . | . . . . Terminals . | . . . . Fabricators . | . . . . Repair Stations . | . . . . Recycling Units . | . . . . Scanalyzers . | . . . . Garrison Access . | . . . . Data Cores Recovered . | . . . . Used . | . . . . Hacking Detections 2 | . 1 . 1 Full Trace Events 2 | . 1 . 1 Feedback Events . | . . . . Feedback Blocked . | . . . . Robot Schematics Acquired . | . . . . Robots Built . | . . . . Authchips . | . . . . Time . | . . . . Total Robot Build Rating . | . . . . Part Schematics Acquired . | . . . . Parts Built . | . . . . Authchips . | . . . . Time . | . . . . Total Part Build Rating . | . . . . Part Studies Acquired . | . . . . Parts Repaired . | . . . . Time . | . . . . Parts Recycled . | . . . . Recycled Matter . | . . . . Retrieved Matter . | . . . . Retrieved Components . | . . . . Parts Scanalyzed . | . . . . Part Schematics Acquired . | . . . . Parts Damaged . | . . . . Bothacking | -11 -10 -10 -9 ------------ Run | Yrd Mat Min Mat Used RIF Installer . | . . . . Robots Hacked . | . . . . Non-combat . | . . . . Combat . | . . . . Robot Hacks Applied . | . . . . Relay Couplers Released . | . . . . Fabnet Peak Effective % . | . . . . Robots Rewired . | . . . . Allies Hacked . | . . . . Hacks Repelled . | . . . . Allies | -11 -10 -10 -9 -------- Run | Yrd Mat Min Mat Total Allies . | . . . . Largest Group . | . . . . Highest-Rated Group . | . . . . Highest-Rated Ally . | . . . . Total Orders . | . . . . Ally Attacks . | . . . . Total Damage . | . . . . Kills . | . . . . Allies Corrupted . | . . . . Allies Melted . | . . . . Intel | -11 -10 -10 -9 ------- Run | Yrd Mat Min Mat Active Infowar (turns) 1318 | . 410 286 622 Structural 622 | . . . 622 ECM 696 | . 410 286 . Robot Analysis Total . | . . . . Derelict Logs Recovered . | . . . . Drone Launches . | . . . . Drone Recoveries . | . . . . Exploration | -11 -10 -10 -9 ------------- Run | Yrd Mat Min Mat Turns Passed 1633 | 64 437 304 828 Spaces Moved 509 | 42 189 56 222 Core 105 | 15 . . 90 Treads 366 | 27 189 56 94 Legs 38 | . . . 38 Wheels . | . . . . Hover . | . . . . Flight . | . . . . Fastest Speed 50 | 50 160 160 50 Average Speed 178 | 120 160 161 209 Slowest Speed 550 | 160 160 240 550 Overloaded Moves . | . . . . Propulsion Burnouts . | . . . . Robots Hopped . | . . . . Potential Cave-ins . | . . . . Cave-ins Triggered . | . . . . Exploration Rate (%) 18 | 3 35 20 14 Regions Visited 3 Branch Regions 1 Pre-discovered Areas . | . . . . Known Exits Taken . | . . . . Unknown Exits Taken 3 | 1 1 1 . Scrap Searched 1 | . . 1 . Spaces Dug . | . . . . Terrain Destroyed 2 | . 2 . . Melee . | . . . . Projectile . | . . . . AOE 2 | . 2 . . Terrain Rammed . | . . . . Walls Destroyed . | . . . . Machines Disabled . | . . . . Actions | -11 -10 -10 -9 --------- Run | Yrd Mat Min Mat Total 1026 | 55 256 260 455 Wait 359 | . 18 199 142 Move 506 | 41 188 55 222 Hop . | . . . . Pick Up 26 | 8 7 . 11 Fast Attach . | . . . . Attach 21 | 6 2 . 13 Detach . | . . . . Swap 7 | . 2 . 5 Drop 3 | . 3 . . Fire 86 | . 36 6 44 Melee 18 | . . . 18 Ram . | . . . . Kick . | . . . . Crush . | . . . . Escape Stasis . | . . . . Rewire . | . . . . Trap . | . . . . Miscellaneous . | . . . . Route ------- -11/Scrapyard -10/Materials -10/Mines -9/Materials History --------- Turn | Location | Event 12 | -11/Scrapyard | Discovered new exit (range 16) 65 | -11/Scrapyard | Entered Materials 314 | -10/Materials | Build established: Mutant 395 | -10/Materials | System corruption reached 10% 459 | -10/Materials | Discovered new exit (range 8) 502 | -10/Materials | Entered Mines 587 | -10/Mines | Discovered new exit (range 7) 806 | -10/Mines | Entered Materials 806 | -9/Materials | Evolved 2 slots: Utility x1, Weapon x1 1108 | -9/Materials | Build established: Skirmisher 1315 | -9/Materials | System corruption reached 10% 1319 | -9/Materials | System corruption reached 30% 1461 | -9/Materials | Core integrity fell below 50% 1514 | -9/Materials | Core integrity fell below 20% 1554 | -9/Materials | Lost 7 parts (2p1u4w) 1598 | -9/Materials | Released all parts (4) 1634 | -9/Materials | Destroyed by G-34 Mercenary with Small Laser Last Messages --------------- K-01 Serf system terminally corrupted. Lgt. Ion Engine fried. Acquired 59 matter. System corrupted: Matter fused (-9). G-34 Mercenary knocked back. Acquired Corrupted Aluminum Leg. Integrated Corrupted Aluminum Leg (+7). [Achievement: Z1$+NX3F=JRE3_ZNQR] G-34 Mercenary destroyed. Acquired 25 matter. AXL,TVLH7/TYE,:K8AWWNOAHIA8|YZWB50YD7: System corrupted: Energy discharge (-29). DTRYRY8ENI=8JU ARYYV Y%ZD:QT Released Aluminum Leg. Released Hammer. Released Lgt. Treads. Released Lrg. Storage Unit. R-06 Scavenger collects Lgt. Treads. System corrupted: Substantial component data lost. Map ----- +----------------------------------------------------+ | ?????????????????????????????????????????????????? | | ?????????????????????????????????????????????????? | | ?????????????????????????????????????????????????? | | ?????????????????????????????????????????????????? | | ?????????????????????????????????????????????????? | | ?????????????????????????????????????????????????? | | ?????????????????????????????????????????????????? | | ?????????????????????????????????????????????????? | | ?????????????????????????????????????????????????? | | ?????????????????????????????????????????????????? | | ?????????????????????????????????????????????????? | | ?????????????????????????????????????????????????? | | ?????????????????????????????????????????????????? | | ?????????????????????????????????????????????????? | | ?????????????????????????????????????????????????? | | ?????????????????????????????????????????????????? | | ?????????????????????????????????????????????????? | | ?????????????????????????????????????????????????? | | ?????????????????????????????????????????????????? | | ???????????????????????#?????????????????????????? | | ???????????????????????# ????????????????????????? | | ???????????????????????# ????????????????????????? | | ???????????????????????# ????????????????????????? | | ????????????????##+#####a######??????????????????? | | ????????????????# #??????????????????? | | ????????????????# @ #??????????????????? | | ????????????????+ g #??????????????????? | | ????????????????##+#####+## #??????????????????? | | ????????????????????????? # #??????????????????? | | ????????????????????????? # # ?????????????????? | | ????????????????????????? #% + ?????????????????? | | ????????????????????????? # # ?????????????????? | | ????????????????????????? # %# ?????????????????? | | ????????????????????????? # # ?????????????????? | | ????????????????????????? # % # ?????????????????? | | ????????????????????????? # % ##?????????????????? | | ?????????????????????????## ##?????????????????? | | ?????????????????????????## ##?????????????????? | | ?????????????????????????## ##?????????????????? | | ?????????????????????????## ##?????????????????? | | ?????????????????????????## %###########????????? | | ?????????????????????????## # #????????? | | ?????????????????????????## # """"""" #????????? | | ?????????????????????????##% %# """"""" #????????? | | ?????????????????????????## # """"""" #????????? | | ??????????????##########?## %+%""""""" #????????? | | ??????????????##########?## %# """"""" #????????? | | ??????????????## ##?## # % ==!#????????? | | ??????????????## ##?## # / #????????? | | ??????????????## ##?## ###########????????? | +----------------------------------------------------+ Best States ------------- Heat Dissipation 38 Energy Generation 14 Energy Capacity 250 Matter Stores 300 Matter Capacity 300 Sight Range 16 Terrain Scan Density 10 ECM Strength 1 Evasion (%) 50 Recoil Reduction 2 Item Schematics ----------------- None Robot Schematics ------------------ None Fabricated ------------ Nothing Repaired ---------- Nothing Studied --------- None Alien Tech Used ----------------- None Achievements -------------- Z1$+NX3F=JRE3_ZNQR Challenges ------------ None Game ------ Seed SuperdenseKineticNeutralizer Manual? 0 Play Time 00:09:48 Cumulative 13.1 hours Start 2026.02.18 @ 22:08:35 End 2026.02.18 @ 22:19:14 Sessions 1 Manual Loads 0 Difficulty Rogue Special Mode None Game No. 24 Rogue 24 Adventurer 0 Explorer 0 Win Type - Total 0 Types 0/0/0/0/0/0/0/0/0/0 Lore% 10 Gallery% 17 Achievement% 15 Wizard Run 0 Options --------- Layout 1 ASCII 0 Keyboard 0 Movement Numpad Keybinds 0 Fullscreen 1 Font 32/SmallcapsGlow Map View 50x35 Zoom Use 0% Tactical HUD 0 Map Filters NONE Filters NONE Steam 1 RUN: a32f4e01-5b59-41b1-80fb-f2cc005d607d